fUSD/lending_fUSD_20240708
["ID","MTS","AMOUNT","RATE_DAILY","PERIOD"]
[331463923,1720427688641,-757.16,0.00034099,44]
[331463924,1720427688688,-500.0,0.00034099,32]
[331463925,1720427688736,-549.62,0.00034099,41]
[331463926,1720427688785,-757.16,0.00034099,45]
[331463927,1720427688833,-500.0,0.00034099,33]
[331463928,1720427688883,-549.62,0.00034099,42]
[331463929,1720427688937,-757.16,0.00034099,46]
[331463930,1720427688987,-500.0,0.00034099,34]
[331463931,1720427689035,-549.62,0.00034099,43]
[331463932,1720427689084,-757.16,0.00034099,47]
[331463933,1720427689132,-500.0,0.00034099,35]
[331463934,1720427689182,-549.62,0.00034099,44]
[331463935,1720427689231,-500.0,0.00034099,36]
[331463936,1720427689278,-757.16,0.00034099,48]
[331463937,1720427689326,-757.16,0.00034099,49]
[331463938,1720427689374,-549.62,0.00034099,45]
[331463939,1720427689421,-757.16,0.00034099,50]
[331463940,1720427689468,-500.0,0.00034099,37]
[331463941,1720427689515,-757.16,0.00034099,51]
[331463942,1720427689561,-500.0,0.00034099,38]
[331463943,1720427689608,-757.16,0.00034099,52]
[331463944,1720427689654,-500.0,0.00034099,39]
[331463945,1720427689700,-757.28809971,0.00034099,53]
[331463946,1720427689745,-549.62,0.00034099,46]
[331463947,1720427689790,-500.0,0.00034099,40]
[331463948,1720427689834,-271.52,0.00034099,41]
[331463949,1720427689879,-549.62,0.00034099,47]
[331463950,1720427689924,-549.62,0.00034099,48]
[331463951,1720427689972,-500.0,0.00034099,30]
[331463952,1720427690019,-561.83,0.00034099,30]
[331463953,1720427690069,-549.62,0.00034099,49]
[331463954,1720427690119,-500.0,0.00034099,31]
[331463955,1720427690167,-561.83,0.00034099,31]
[331463956,1720427690213,-549.62,0.00034099,50]
[331463957,1720427690259,-561.83,0.00034099,32]
[331463958,1720427690304,-500.0,0.00034099,30]
[331463959,1720427690351,-561.83,0.00034099,33]
[331463960,1720427690399,-500.0,0.00034099,32]
[331463961,1720427690446,-500.0,0.00034099,31]
[331463962,1720427690504,-613.38,0.00034099,30]
[331463963,1720427690552,-561.83,0.00034099,34]
[331463964,1720427690598,-613.38,0.00034099,30]
[331463965,1720427690647,-500.0,0.00034099,32]
[331463966,1720427690701,-501.56682282,0.00034099,33]
[331463967,1720427690752,-561.83,0.00034099,35]
[331463968,1720427690803,-613.38,0.00034099,30]
[331463969,1720427690860,-500.0,0.00034099,33]
[331463970,1720427690913,-500.0,0.00034099,30]
[331463971,1720427690981,-549.62,0.00034099,51]
[331463972,1720427691035,-561.83,0.00034099,36]
[331463973,1720427691085,-613.38,0.00034099,30]
[331463974,1720427691138,-500.0,0.00034099,34]
[331463975,1720427691190,-500.0,0.00034099,31]
[331463976,1720427691243,-549.62,0.00034099,52]
[331463977,1720427691290,-561.83,0.00034099,37]
[331463978,1720427691338,-500.0,0.00034099,35]
[331463979,1720427691386,-613.38,0.00034099,30]
[331463980,1720427691432,-500.0,0.00034099,32]
[331463981,1720427691480,-561.83,0.00034099,38]
[331463982,1720427691532,-500.0,0.00034099,36]
[331463983,1720427691581,-549.78441566,0.00034099,53]
[331463984,1720427691627,-500.0,0.00034099,33]
[331463985,1720427691673,-561.83,0.00034099,39]
[331463986,1720427691718,-500.0,0.00034099,37]
[331463987,1720427691767,-500.0,0.00034099,34]
[331463988,1720427691817,-561.83,0.00034099,40]
[331463989,1720427691864,-561.83,0.00034099,41]
[331463990,1720427691912,-500.0,0.00034099,35]
[331463991,1720427691966,-500.0,0.00034099,38]
[331463992,1720427692021,-613.38,0.00034099,30]
[331463993,1720427692067,-561.83,0.00034099,42]
[331463994,1720427692114,-500.0,0.00034099,36]
[331463995,1720427692160,-561.83,0.00034099,43]
[331463996,1720427692206,-613.38,0.00034099,30]
[331463997,1720427692263,-500.0,0.00034099,37]
[331463998,1720427692310,-500.0,0.00034099,39]
[331463999,1720427692359,-500.0,0.00034099,30]
[331464000,1720427692405,-561.83,0.00034099,44]
[331464001,1720427692453,-613.38,0.00034099,30]
[331464002,1720427692502,-500.0,0.00034099,38]
[331464003,1720427692546,-500.0,0.00034099,31]
[331464004,1720427692592,-500.0,0.00034099,40]
[331464005,1720427692636,-1917.36,0.00034099,30]
[331464006,1720427692678,-561.83,0.00034099,45]
[331464007,1720427692720,-613.38,0.00034099,30]
[331464008,1720427692765,-500.0,0.00034099,39]
[331464009,1720427692812,-500.0,0.00034099,32]
[331464010,1720427692861,-500.0,0.00034099,41]
[331464011,1720427692907,-1917.36,0.00034099,31]
[331464012,1720427692954,-561.83,0.00034099,46]
[331464013,1720427693004,-613.38,0.00034099,30]
[331464014,1720427693051,-500.0,0.00034099,40]
[331464015,1720427693097,-504.38420364,0.00034099,33]
[331464016,1720427693144,-500.0,0.00034099,42]
[331464017,1720427693190,-1917.36,0.00034099,32]
[331464018,1720427693456,-613.38,0.00034099,30]
[331464019,1720427693509,-500.0,0.00034099,41]
[331464020,1720427693558,-561.83,0.00034099,47]
[331464021,1720427693609,-500.0,0.00034099,43]
[331464022,1720427693662,-1917.36,0.00034099,33]
[331464023,1720427693711,-613.38,0.00034099,30]
[331464024,1720427693759,-561.83,0.00034099,48]
[331464025,1720427693809,-598.63288401,0.00034099,44]
[331464026,1720427693857,-1917.36,0.00034099,34]
[331464027,1720427693908,-561.83,0.00034099,49]
[331464028,1720427693961,-1917.36,0.00034099,35]
[331464029,1720427694011,-613.38,0.00034099,30]
[331464030,1720427694066,-561.83,0.00034099,50]
[331464031,1720427694115,-1917.36,0.00034099,36]
[331464032,1720427694163,-561.83,0.00034099,51]
[331464033,1720427694218,-1917.36,0.00034099,37]
[331464034,1720427694270,-561.83,0.00034099,52]
[331464035,1720427694322,-500.0,0.00034099,42]
[331464036,1720427694372,-613.38,0.00034099,30]
[331464037,1720427694420,-1917.36,0.00034099,38]
[331464038,1720427694468,-561.92502947,0.00034099,53]
[331464039,1720427694517,-500.0,0.00034099,43]
[331464040,1720427694566,-613.38,0.00034099,30]
[331464041,1720427694615,-1917.36,0.00034099,39]
[331464042,1720427694665,-613.38,0.00034099,30]
[331464043,1720427694716,-1917.36,0.00034099,40]
[331464044,1720427694763,-500.0,0.00034099,44]
[331464045,1720427694810,-613.38,0.00034099,30]
[331464046,1720427694859,-1917.36,0.00034099,41]
[331464047,1720427694906,-523.03875394,0.00034099,45]
[331464048,1720427694957,-500.0,0.00034099,30]
[331464049,1720427695005,-613.38,0.00034099,30]
[331464050,1720427695055,-1917.36,0.00034099,42]
[331464051,1720427695104,-500.0,0.00034099,31]
[331464052,1720427695152,-613.38,0.00034099,30]
[331464053,1720427695204,-1917.36,0.00034099,43]
[331464054,1720427695257,-613.38,0.00034099,30]
[331464055,1720427695311,-1917.36,0.00034099,44]
[331464056,1720427695367,-500.0,0.00034099,32]
[331464057,1720427695421,-613.38,0.00034099,30]
[331464058,1720427695477,-1917.36,0.00034099,45]
[331464059,1720427695531,-500.0,0.00034099,33]
[331464060,1720427695583,-613.38,0.00034099,30]
[331464061,1720427695637,-1917.36,0.00034099,46]
[331464062,1720427695694,-267.48764001,0.00034099,34]
[331464063,1720427695746,-613.38,0.00034099,30]
[331464064,1720427695799,-1917.36,0.00034099,47]
[331464065,1720427695854,-1917.36,0.00034099,48]
[331464066,1720427695910,-613.56468899,0.00034099,30]
[331464067,1720427695976,-1917.36,0.00034099,49]
[331464068,1720427696025,-1917.36,0.00034099,50]
[331464069,1720427696073,-1917.36,0.00034099,51]
[331464070,1720427696119,-1917.36,0.00034099,52]
[331464071,1720427696170,-1917.58866621,0.00034099,53]
[331464072,1720427696221,-500.0,0.00034099,30]
[331464073,1720427696268,-500.0,0.00034099,30]
[331464074,1720427696317,-500.0,0.00034099,31]
[331464075,1720427696365,-500.0,0.00034099,31]
[331464076,1720427696414,-500.0,0.00034099,30]
[331464077,1720427696470,-500.0,0.00034099,32]
[331464078,1720427696517,-519.91,0.00034099,30]
[331464079,1720427696563,-301.56059338,0.00034099,32]
[331464080,1720427696610,-500.0,0.00034099,33]
[331464081,1720427696658,-519.91,0.00034099,31]
[331464082,1720427696704,-500.0,0.00034099,34]
[331464083,1720427696752,-519.91,0.00034099,32]
[331464084,1720427696805,-619.16,0.00034099,35]
[331464085,1720427696853,-519.91,0.00034099,33]
[331464086,1720427696905,-519.91,0.00034099,34]
[331464087,1720427696956,-519.91,0.00034099,35]
[331464088,1720427697009,-2617.57,0.00034099,30]
[331464089,1720427697056,-1172.19,0.00034099,30]
[331464090,1720427697106,-519.91,0.00034099,36]
[331464091,1720427697156,-2617.57,0.00034099,31]
[331464092,1720427697206,-1172.19,0.00034099,31]
[331464093,1720427697259,-519.91,0.00034099,37]
[331464094,1720427697308,-2617.57,0.00034099,32]
[331464095,1720427697356,-1172.19,0.00034099,32]
[331464096,1720427697402,-519.91,0.00034099,38]
[331464097,1720427697449,-2617.57,0.00034099,33]
[331464098,1720427697498,-1172.19,0.00034099,33]
[331464099,1720427697545,-2617.57,0.00034099,34]
[331464100,1720427697591,-1172.19,0.00034099,34]
[331464101,1720427697637,-500.0,0.00034099,30]
[331464102,1720427697682,-519.91,0.00034099,39]
[331464103,1720427697727,-747.04,0.00034099,30]
[331464104,1720427697775,-1172.19,0.00034099,35]
[331464105,1720427697823,-519.91,0.00034099,40]
[331464106,1720427697871,-2617.57,0.00034099,35]
[331464107,1720427697919,-500.0,0.00034099,31]
[331464108,1720427697967,-519.91,0.00034099,41]
[331464109,1720427698013,-747.04,0.00034099,31]
[331464110,1720427698061,-2617.57,0.00034099,36]
[331464111,1720427698110,-500.0,0.00034099,32]
[331464112,1720427698158,-1172.19,0.00034099,36]
[331464113,1720427698203,-500.0,0.00034099,30]
[331464114,1720427698252,-519.91,0.00034099,42]
[331464115,1720427698299,-747.04,0.00034099,32]
[331464116,1720427698345,-2617.57,0.00034099,37]
[331464117,1720427698393,-500.0,0.00034099,33]
[331464118,1720427698444,-1172.19,0.00034099,37]
[331464119,1720427698498,-747.04,0.00034099,33]
[331464120,1720427698544,-519.91,0.00034099,43]
[331464121,1720427698827,-2617.57,0.00034099,38]
[331464122,1720427698878,-500.0,0.00034099,34]
[331464123,1720427698928,-1172.19,0.00034099,38]
[331464124,1720427698976,-747.04,0.00034099,34]
[331464125,1720427699024,-519.91,0.00034099,44]
[331464126,1720427699072,-2617.57,0.00034099,39]
[331464127,1720427699123,-288.25098006,0.00034099,35]
[331464128,1720427699175,-747.04,0.00034099,35]
[331464129,1720427699228,-519.91,0.00034099,45]
[331464130,1720427699279,-1172.19,0.00034099,39]
[331464131,1720427699331,-747.04,0.00034099,36]
[331464132,1720427699380,-519.91,0.00034099,46]
[331464133,1720427699428,-2617.57,0.00034099,40]
[331464134,1720427699476,-1172.19,0.00034099,40]
[331464135,1720427699525,-747.04,0.00034099,37]
[331464136,1720427699575,-519.91,0.00034099,47]
[331464137,1720427699622,-2617.57,0.00034099,41]
[331464138,1720427699668,-1172.19,0.00034099,41]
[331464139,1720427699716,-525.18,0.00034099,30]
[331464140,1720427699760,-519.91,0.00034099,48]
[331464141,1720427699807,-747.04,0.00034099,38]
[331464142,1720427699857,-1172.19,0.00034099,42]
[331464143,1720427699908,-525.18,0.00034099,31]
[331464144,1720427699956,-747.04,0.00034099,39]
[331464145,1720427700005,-519.91,0.00034099,49]
[331464146,1720427700055,-2617.57,0.00034099,42]
[331464147,1720427700105,-1172.19,0.00034099,43]
[331464148,1720427700154,-525.18,0.00034099,32]
[331464149,1720427700207,-519.91,0.00034099,50]
[331464150,1720427700267,-2617.57,0.00034099,43]
[331464151,1720427700317,-1172.19,0.00034099,44]
[331464152,1720427700366,-525.18,0.00034099,33]
[331464153,1720427700413,-747.04,0.00034099,40]
[331464154,1720427700457,-519.91,0.00034099,51]
[331464155,1720427700507,-2617.57,0.00034099,44]
[331464156,1720427700553,-1172.19,0.00034099,45]
[331464157,1720427700597,-525.18,0.00034099,34]
[331464158,1720427700641,-519.91,0.00034099,52]
[331464159,1720427700688,-747.04,0.00034099,41]
[331464160,1720427700739,-2617.57,0.00034099,45]
[331464161,1720427700789,-1172.19,0.00034099,46]
[331464162,1720427700841,-525.18,0.00034099,35]
[331464163,1720427700895,-747.04,0.00034099,42]
[331464164,1720427700950,-519.99,0.00034099,53]
[331464165,1720427701006,-2617.57,0.00034099,46]
[331464166,1720427701058,-1172.19,0.00034099,47]
[331464167,1720427701108,-747.04,0.00034099,43]
[331464168,1720427701159,-525.18,0.00034099,36]
[331464169,1720427701208,-2617.57,0.00034099,47]
[331464170,1720427701259,-1172.19,0.00034099,48]
[331464171,1720427701310,-747.04,0.00034099,44]
[331464172,1720427701358,-525.18,0.00034099,37]
[331464173,1720427701408,-2617.57,0.00034099,48]
[331464174,1720427701454,-1172.19,0.00034099,49]
[331464175,1720427701507,-747.04,0.00034099,45]
[331464176,1720427701555,-525.18,0.00034099,38]
[331464177,1720427701603,-500.0,0.00034099,30]
[331464178,1720427701650,-1172.19,0.00034099,50]
[331464179,1720427701699,-747.04,0.00034099,46]
[331464180,1720427701759,-2617.57,0.00034099,49]
[331464181,1720427701811,-525.18,0.00034099,39]
[331464182,1720427701863,-1172.19,0.00034099,51]
[331464183,1720427701910,-525.18,0.00034099,40]
[331464184,1720427701962,-747.04,0.00034099,47]
[331464185,1720427702018,-2617.57,0.00034099,50]
[331464186,1720427702071,-1172.19,0.00034099,52]
[331464187,1720427702120,-525.18,0.00034099,41]
[331464188,1720427702169,-2617.57,0.00034099,51]
[331464189,1720427702220,-747.04,0.00034099,48]
[331464190,1720427702271,-1172.37621122,0.00034099,53]
[331464191,1720427702316,-525.18,0.00034099,42]
[331464192,1720427702360,-2617.57,0.00034099,52]
[331464193,1720427702405,-747.04,0.00034099,49]
[331464194,1720427702449,-747.04,0.00034099,50]
[331464195,1720427702499,-2617.7841359,0.00034099,53]
[331464196,1720427702545,-747.04,0.00034099,51]
[331464197,1720427702594,-525.18,0.00034099,43]
[331464198,1720427702641,-747.04,0.00034099,52]
[331464199,1720427702688,-525.18,0.00034099,44]
[331464200,1720427702735,-747.08474976,0.00034099,53]
[331464201,1720427702782,-500.0,0.00034099,30]
[331464202,1720427702829,-525.18,0.00034099,45]
[331464203,1720427702877,-500.0,0.00034099,31]
[331464204,1720427702923,-525.18,0.00034099,46]
[331464205,1720427702973,-500.0,0.00034099,32]
[331464206,1720427703021,-525.18,0.00034099,47]
[331464207,1720427703071,-500.0,0.00034099,33]
[331464208,1720427703122,-1580.47,0.00034099,30]
[331464209,1720427703172,-525.18,0.00034099,48]
[331464210,1720427703220,-500.0,0.00034099,34]
[331464211,1720427703268,-1580.47,0.00034099,31]
[331464212,1720427703324,-525.18,0.00034099,49]
[331464213,1720427703373,-500.0,0.00034099,35]
[331464214,1720427703420,-1580.47,0.00034099,32]
[331464215,1720427703468,-525.18,0.00034099,50]
[331464216,1720427703515,-500.0,0.00034099,36]
[331464217,1720427703562,-1580.47,0.00034099,33]
[331464218,1720427703610,-525.18,0.00034099,51]
[331464219,1720427703662,-500.0,0.00034099,37]
[331464220,1720427703717,-1580.47,0.00034099,34]
[331464221,1720427703766,-525.18,0.00034099,52]
[331464222,1720427703818,-500.0,0.00034099,38]
[331464223,1720427703870,-525.34,0.00034099,53]
[331464224,1720427703922,-1580.47,0.00034099,35]
[331464225,1720427704282,-552.79,0.00034099,30]
[331464226,1720427704332,-500.0,0.00034099,39]
[331464227,1720427704382,-500.0,0.00034099,30]
[331464228,1720427704432,-1580.47,0.00034099,36]
[331464229,1720427704479,-552.79,0.00034099,31]
[331464230,1720427704527,-500.0,0.00034099,30]
[331464231,1720427704575,-1580.47,0.00034099,37]
[331464232,1720427704624,-500.0,0.00034099,40]
[331464233,1720427704670,-500.0,0.00034099,31]
[331464234,1720427704718,-500.0,0.00034099,31]
[331464235,1720427704762,-1580.47,0.00034099,38]
[331464236,1720427704808,-500.0,0.00034099,41]
[331464237,1720427704854,-552.79,0.00034099,32]
[331464238,1720427704906,-500.0,0.00034099,32]
[331464239,1720427704957,-1580.47,0.00034099,39]
[331464240,1720427705010,-500.0,0.00034099,42]
[331464241,1720427705057,-552.79,0.00034099,33]
[331464242,1720427705103,-500.0,0.00034099,32]
[331464243,1720427705150,-503.51232183,0.00034099,30]
[331464244,1720427705197,-1580.47,0.00034099,40]
[331464245,1720427705248,-500.0,0.00034099,43]
[331464246,1720427705297,-500.0,0.00034099,33]
[331464247,1720427705346,-552.79,0.00034099,34]
[331464248,1720427705396,-500.0,0.00034099,33]
[331464249,1720427705446,-1580.47,0.00034099,41]
[331464250,1720427705498,-500.0,0.00034099,34]
[331464251,1720427705546,-552.79,0.00034099,35]
[331464252,1720427705593,-1580.47,0.00034099,42]
[331464253,1720427705640,-500.0,0.00034099,34]
[331464254,1720427705689,-500.0,0.00034099,30]
[331464255,1720427705737,-500.0,0.00034099,44]
[331464256,1720427705786,-618.32022201,0.00034099,35]
[331464257,1720427705836,-500.0,0.00034099,35]
[331464258,1720427705887,-1580.47,0.00034099,43]
[331464259,1720427705938,-552.79,0.00034099,36]
[331464260,1720427705988,-500.0,0.00034099,31]
[331464261,1720427706037,-500.0,0.00034099,45]
[331464262,1720427706086,-500.0,0.00034099,36]
[331464263,1720427706134,-1580.47,0.00034099,44]
[331464264,1720427706182,-500.0,0.00034099,46]
[331464265,1720427706232,-500.0,0.00034099,32]
[331464266,1720427706281,-500.0,0.00034099,37]
[331464267,1720427706331,-1580.47,0.00034099,45]
[331464268,1720427706381,-552.79,0.00034099,37]
[331464269,1720427706431,-500.0,0.00034099,47]
[331464270,1720427706480,-500.0,0.00034099,33]
[331464271,1720427706527,-500.0,0.00034099,38]
[331464272,1720427706575,-1580.47,0.00034099,46]
[331464273,1720427706623,-552.79,0.00034099,38]
[331464274,1720427706672,-500.0,0.00034099,48]
[331464275,1720427706724,-500.0,0.00034099,34]
[331464276,1720427706775,-500.0,0.00034099,39]
[331464277,1720427706827,-1580.47,0.00034099,47]
[331464278,1720427706878,-500.0,0.00034099,49]
[331464279,1720427706924,-552.79,0.00034099,39]
[331464280,1720427706974,-500.0,0.00034099,35]
[331464281,1720427707022,-500.0,0.00034099,40]
[331464282,1720427707074,-1580.47,0.00034099,48]
[331464283,1720427707125,-500.0,0.00034099,50]
[331464284,1720427707175,-500.0,0.00034099,36]
[331464285,1720427707229,-552.79,0.00034099,40]
[331464286,1720427707280,-500.0,0.00034099,41]
[331464287,1720427707332,-1580.47,0.00034099,49]
[331464288,1720427707381,-203.23530603,0.00034099,37]
[331464289,1720427707432,-500.0,0.00034099,51]
[331464290,1720427707483,-500.0,0.00034099,42]
[331464291,1720427707530,-552.79,0.00034099,41]
[331464292,1720427707581,-1580.47,0.00034099,50]
[331464293,1720427707632,-1952.09,0.00034099,30]
[331464294,1720427707681,-386.84697696,0.00034099,52]
[331464295,1720427707729,-500.0,0.00034099,43]
[331464296,1720427707778,-552.79,0.00034099,42]
[331464297,1720427707827,-1580.47,0.00034099,51]
[331464298,1720427707877,-1952.09,0.00034099,31]
[331464299,1720427707925,-500.0,0.00034099,44]
[331464300,1720427707975,-552.79,0.00034099,43]
[331464301,1720427708020,-1580.47,0.00034099,52]
[331464302,1720427708070,-1952.09,0.00034099,32]
[331464303,1720427708121,-500.0,0.00034099,45]
[331464304,1720427708171,-552.79,0.00034099,44]
[331464305,1720427708222,-1952.09,0.00034099,33]
[331464306,1720427708270,-500.0,0.00034099,46]
[331464307,1720427708319,-1952.09,0.00034099,34]
[331464308,1720427708369,-1580.67533921,0.00034099,53]
[331464309,1720427708415,-534.69910157,0.00034099,47]
[331464310,1720427708462,-1952.09,0.00034099,35]
[331464311,1720427708511,-552.79,0.00034099,45]
[331464312,1720427708556,-1952.09,0.00034099,36]
[331464313,1720427708605,-552.79,0.00034099,46]
[331464314,1720427708653,-1952.09,0.00034099,37]
[331464315,1720427708698,-552.79,0.00034099,47]
[331464316,1720427708750,-1952.09,0.00034099,38]
[331464317,1720427708798,-552.79,0.00034099,48]
[331464318,1720427708845,-1952.09,0.00034099,39]
[331464319,1720427708897,-552.79,0.00034099,49]
[331464320,1720427708947,-1952.09,0.00034099,40]
[331464321,1720427708996,-552.79,0.00034099,50]
[331464322,1720427709043,-1952.09,0.00034099,41]
[331464323,1720427709098,-552.79,0.00034099,51]
[331464324,1720427709159,-552.79,0.00034099,52]
[331464325,1720427709218,-1952.09,0.00034099,42]
[331464326,1720427709271,-1952.09,0.00034099,43]
[331464327,1720427709324,-1952.09,0.00034099,44]
[331464328,1720427709372,-552.808755,0.00034099,53]
[331464329,1720427709671,-500.0,0.00034099,30]
[331464330,1720427709725,-1952.09,0.00034099,45]
[331464331,1720427709776,-504.42631699,0.00034099,30]
[331464332,1720427709828,-500.0,0.00034099,31]
[331464333,1720427709876,-1952.09,0.00034099,46]
[331464334,1720427709924,-500.0,0.00034099,32]
[331464335,1720427709976,-515.14039807,0.00034099,33]
[331464336,1720427710026,-800.07,0.00034099,30]
[331464337,1720427710077,-1952.09,0.00034099,47]
[331464338,1720427710127,-800.07,0.00034099,31]
[331464339,1720427710178,-1952.09,0.00034099,48]
[331464340,1720427710229,-800.07,0.00034099,32]
[331464341,1720427710287,-1952.09,0.00034099,49]
[331464342,1720427710346,-1952.09,0.00034099,50]
[331464343,1720427710411,-800.07,0.00034099,33]
[331464344,1720427710462,-1952.09,0.00034099,51]
[331464345,1720427710516,-800.07,0.00034099,34]
[331464346,1720427710564,-500.0,0.00034099,30]
[331464347,1720427710609,-500.0,0.00034099,31]
[331464348,1720427710660,-1952.09,0.00034099,52]
[331464349,1720427710711,-500.0,0.00034099,30]
[331464350,1720427710763,-800.07,0.00034099,35]
[331464351,1720427710813,-500.0,0.00034099,30]
[331464352,1720427710868,-506.53441919,0.00034099,32]
[331464353,1720427710925,-1952.18890603,0.00034099,53]
[331464354,1720427710976,-800.07,0.00034099,36]
[331464355,1720427711029,-500.0,0.00034099,31]
[331464356,1720427711077,-500.0,0.00034099,31]
[331464357,1720427711126,-800.07,0.00034099,37]
[331464358,1720427711178,-500.0,0.00034099,32]
[331464359,1720427711228,-500.0,0.00034099,32]
[331464360,1720427711278,-800.07,0.00034099,38]
[331464361,1720427711329,-500.0,0.00034099,33]
[331464362,1720427711377,-800.07,0.00034099,39]
[331464363,1720427711425,-500.0,0.00034099,33]
[331464364,1720427711472,-500.0,0.00034099,34]
[331464365,1720427711520,-800.07,0.00034099,40]
[331464366,1720427711564,-552.82083206,0.00034099,35]
[331464367,1720427711613,-800.07,0.00034099,41]
[331464368,1720427711662,-500.0,0.00034099,34]
[331464369,1720427711708,-800.07,0.00034099,42]
[331464370,1720427711754,-500.0,0.00034099,35]
[331464371,1720427711798,-500.0,0.00034099,30]
[331464372,1720427711844,-800.07,0.00034099,43]
[331464373,1720427711893,-500.0,0.00034099,36]
[331464374,1720427711942,-624.44,0.00034099,30]
[331464375,1720427711990,-500.0,0.00034099,31]
[331464376,1720427712037,-507.43344616,0.00034099,37]
[331464377,1720427712083,-624.44,0.00034099,31]
[331464378,1720427712130,-800.07,0.00034099,44]
[331464379,1720427712176,-624.44,0.00034099,32]
[331464380,1720427712225,-800.07,0.00034099,45]
[331464381,1720427712271,-624.44,0.00034099,33]
[331464382,1720427712315,-800.07,0.00034099,46]
[331464383,1720427712360,-624.44,0.00034099,34]
[331464384,1720427712405,-624.44,0.00034099,35]
[331464385,1720427712448,-800.07,0.00034099,47]
[331464386,1720427712495,-624.44,0.00034099,36]
[331464387,1720427712540,-800.07,0.00034099,48]
[331464388,1720427712585,-624.44,0.00034099,37]
[331464389,1720427712631,-800.07,0.00034099,49]
[331464390,1720427712676,-624.44,0.00034099,38]
[331464391,1720427712722,-800.07,0.00034099,50]
[331464392,1720427712765,-624.44,0.00034099,39]
[331464393,1720427712812,-800.07,0.00034099,51]
[331464394,1720427712857,-624.44,0.00034099,40]
[331464395,1720427712905,-800.07,0.00034099,52]
[331464396,1720427712951,-800.21375217,0.00034099,53]
[331464397,1720427712997,-2853.95,0.00034099,30]
[331464398,1720427713042,-2853.95,0.00034099,31]
[331464399,1720427713088,-500.0,0.00034099,30]
[331464400,1720427713135,-2853.95,0.00034099,32]
[331464401,1720427713178,-2853.95,0.00034099,33]
[331464402,1720427713221,-2853.95,0.00034099,34]
[331464403,1720427713266,-568.102976,0.00034099,31]
[331464404,1720427713313,-2853.95,0.00034099,35]
[331464405,1720427713360,-1369.99,0.00034099,30]
[331464406,1720427713410,-2853.95,0.00034099,36]
[331464407,1720427713457,-1369.99,0.00034099,31]
[331464408,1720427713507,-2853.95,0.00034099,37]
[331464409,1720427713554,-500.0,0.00034099,30]
[331464410,1720427713602,-1369.99,0.00034099,32]
[331464411,1720427713649,-2853.95,0.00034099,38]
[331464412,1720427713697,-2853.95,0.00034099,39]
[331464413,1720427713747,-1369.99,0.00034099,33]
[331464414,1720427713795,-500.0,0.00034099,31]
[331464415,1720427713844,-1369.99,0.00034099,34]
[331464416,1720427713894,-500.0,0.00034099,32]
[331464417,1720427713946,-624.44,0.00034099,41]
[331464418,1720427713997,-2853.95,0.00034099,40]
[331464419,1720427714045,-500.0,0.00034099,33]
[331464420,1720427714093,-1369.99,0.00034099,35]
[331464421,1720427714138,-624.44,0.00034099,42]
[331464422,1720427714184,-2853.95,0.00034099,41]